Workbook

Sheet 업무여유도 양식
A2: - 업무여유도
A3: (참여분야 : 총괄평가자, 한 창 우)
A4: (여유도 산정 기준일) | C4: 2016-08-01
A5: No. | B5: 용역명 | C5: 총사업금액 (백만원) | D5: 착수일 | E5: 준공일 | F5: 잔여 일수 | G5: 총계약 일수 | H5: 중복금액 (백만원)
A6: 1 | B6: 남부권역 국민임대주택단지 제영향평가용역 ※협의완료 | C6: 979 | D6: 2005-06-27 | E6: 2016-07-20 | F6: 0 | G6: =SUM(E6-D6)+1 -> 4042 | H6: 0
A7: 2 | B7: 부여 나주 친수구역 환경.교통분야 영향평가 용역 ※3개월이상 중지중 | C7: 252 | D7: 2014-07-25 | E7: 2016-08-02 | F7: 중지중 | G7: 740 | H7: 0
A8: 3 | B8: 옥천 제2의료기기 산업단지 제 영향평가 용역 ※협의완료 | C8: 277 | D8: 2015-02-16 | E8: 2016-08-08 | F8: =SUM(IF((E8-$C$4)>365,365,E8-$C$4))+1 -> 8 | G8: 540 | H8: =ROUNDUP((SUM((C8*(F8/G8)/10))),2) -> 0.42
A9: 4 | B9: 2020년 강릉도시관리계획(재정비) 전략환경영향평가수립용역 | C9: 214 | D9: 2015-11-02 | E9: 2018-10-16 | F9: 366 | G9: 1080 | H9: 7.26
A10: 5 | B10: 당진 수청2지구 도시개발사업 제영향평가용역 | C10: 322 | D10: 2015-11-09 | E10: 2017-05-09 | F10: 282 | G10: 548 | H10: 16.58
A11: 6 | B11: 나주시 소하천정비 종합계획 재수립 전략환경영향평가 용역 | C11: 397 | D11: 2016-01-22 | E11: 2017-01-20 | F11: 173 | G11: 365 | H11: 18.82
A12: 7 | B12: 성황국제비즈니스파크 제영향평가 용역 | C12: 499 | D12: 2016-02-17 | E12: 2017-02-15 | F12: 199 | G12: 365 | H12: 27.21
B13: 계 | H13: =SUM(H6:H12) -> 70.29
A16: (참여분야 : 수질관리분야 책임평가자, 강 병 렬)
A17: (여유도 산정 기준일) | C17: 2016-08-01
A18: No. | B18: 용역명 | C18: 총사업금액 (백만원) | D18: 착수일 | E18: 준공일 | F18: 잔여 일수 | G18: 총계약 일수 | H18: 중복금액 (백만원)
A19: 1 | B19: 남부권역 국민임대주택단지 제영향평가용역 ※협의완료 | C19: 979 | D19: 2005-06-27 | E19: 2016-07-20 | F19: 0 | G19: =E19-D19+1 -> 4042 | H19: 0
A20: 2 | B20: 농소∼외동 국도건설공사 환경영향평가용역 | C20: 226 | D20: 2008-12-03 | E20: 2017-06-22 | F20: =SUM(IF((E20-$C$4)>365,365,E20-$C$4))+1 -> 326 | G20: =E20-D20+1 -> 3124 | H20: =ROUNDUP((SUM((C20*(F20/G20)/10))),2) -> 2.36
A21: 3 | B21: 나주시 소하천정비 종합계획 재수립 전략환경영향평가 용역 | C21: 397 | D21: 2016-01-22 | E21: 2017-01-20 | F21: =SUM(IF((E21-$C$4)>365,365,E21-$C$4))+1 -> 173 | G21: 365 | H21: 18.82
B22: 계 | H22: =SUM(H19:H21) -> 21.18
A25: (참여분야 : 대기관리분야 책임평가자, 이 승 열)
A26: (여유도 산정 기준일) | C26: 2016-08-01
A27: No. | B27: 용역명 | C27: 총사업금액 (백만원) | D27: 착수일 | E27: 준공일 | F27: 잔여 일수 | G27: 총계약 일수 | H27: 중복금액 (백만원)
A28: 1 | B28: 한강 고양지구 하천환경정비사업 소규모환경영향평가용역 | C28: 146 | D28: 2016-03-10 | E28: 2016-09-05 | F28: =SUM(IF((E28-$C$4)>365,365,E28-$C$4))+1 -> 36 | G28: =E28-D28+1 -> 180 | H28: =ROUNDUP((SUM((C28*(F28/G28)/10))),2) -> 2.92
A29: 2 | B29: 국지도 84호선(길상-선원) 도로개설공사 환경영향평가용역 | C29: 337 | D29: 2015-10-29 | E29: 2016-07-24 | F29: 0 | G29: 270 | H29: 0
A30: 3 | B30: 국도31호선 영월-방림3 도로건설공사 등 3개소 환경영향평가용역 | C30: 1722 | D30: 2015-03-06 | E30: 2017-05-01 | F30: =SUM(IF((E30-$C$4)>365,365,E30-$C$4))+1 -> 274 | G30: 788 | H30: 59.88
B31: 계 | H31: =SUM(H28:H30) -> 62.8
A34: (참여분야 : 폐기물처리분야 책임평가자, 최 은 주)
A35: (여유도 산정 기준일) | C35: 2016-08-01
A36: No. | B36: 용역명 | C36: 총사업금액 (백만원) | D36: 착수일 | E36: 준공일 | F36: 잔여 일수 | G36: 총계약 일수 | H36: 중복금액 (백만원)
A37: 1 | B37: 나주시 소하천정비 종합계획 재수립 전략환경영향평가 용역 | C37: 397 | D37: 2016-01-22 | E37: 2017-01-20 | F37: =SUM(IF((E37-$C$4)>365,365,E37-$C$4))+1 -> 173 | G37: =SUM(E37-D37)+1 -> 365 | H37: =ROUNDUP((SUM((C37*(F37/G37)/10))),2) -> 18.82
B38: 계 | H38: =SUM(H37:H37) -> 18.82
A41: (참여분야 : 소음진동분야 책임평가자, 송 길)
A42: (여유도 산정 기준일) | C42: 2016-08-01
A43: No. | B43: 용역명 | C43: 총사업금액 (백만원) | D43: 착수일 | E43: 준공일 | F43: 잔여 일수 | G43: 총계약 일수 | H43: 중복금액 (백만원)
A44: 1 | B44: 첨단 제2단지 환경영향평가 및 교통영향분석, 개선대책수립 용역 ※3개월이상 중지중 | C44: 991 | D44: 2015-05-26 | E44: 2016-11-25 | F44: =SUM(IF((E44-$C$4)>365,365,E44-$C$4))+1 -> 117 | G44: =SUM(E44-D44)+1 -> 550 | H44: 0
A45: 2 | B45: 나주시 소하천정비 종합계획 재수립 전략환경영향평가 용역 | C45: 397 | D45: 2016-01-22 | E45: 2017-01-20 | F45: =SUM(IF((E45-$C$4)>365,365,E45-$C$4))+1 -> 173 | G45: =SUM(E45-D45)+1 -> 365 | H45: =ROUNDUP((SUM((C45*(F45/G45)/10))),2) -> 18.82
B46: 계 | H46: =SUM(H44:H45) -> 18.82
A49: (참여분야 : 자연환경분야 책임평가자, 채 명 우)
A50: (여유도 산정 기준일) | C50: 2016-08-01
A51: No. | B51: 용역명 | C51: 총사업금액 (백만원) | D51: 착수일 | E51: 준공일 | F51: 잔여 일수 | G51: 총계약 일수 | H51: 중복금액 (백만원)
A52: 1 | B52: 나주시 소하천정비 종합계획 재수립 전략환경영향평가 용역 | C52: 397 | D52: 2016-01-22 | E52: 2017-01-20 | F52: =SUM(IF((E52-$C$4)>365,365,E52-$C$4))+1 -> 173 | G52: =SUM(E52-D52)+1 -> 365 | H52: =ROUNDUP((SUM((C52*(F52/G52)/10))),2) -> 18.82
A53: 2 | B53: 성황국제비즈니스파크 제영향평가 용역 | C53: 499 | D53: 2016-02-17 | E53: 2017-02-15 | F53: =SUM(IF((E53-$C$4)>365,365,E53-$C$4))+1 -> 199 | G53: =SUM(E53-D53)+1 -> 365 | H53: 27.21
A54: 3 | B54: 남부권역 국민임대주택단지 제영향평가용역 ※협의완료 | C54: 979 | D54: 2005-06-27 | E54: 2016-07-20 | F54: 0 | G54: =SUM(E54-D54)+1 -> 4042 | H54: 0
B55: 계 | H55: =SUM(H52:H54) -> 46.03
A58: (참여분야 : 교통분야 책임평가자, 정 정 연)
A59: (여유도 산정 기준일) | C59: 2016-08-01
A60: No. | B60: 용역명 | C60: 총사업금액 (백만원) | D60: 착수일 | E60: 준공일 | F60: 잔여 일수 | G60: 총계약 일수 | H60: 중복금액 (백만원)
A61: 1 | B61: 김포한강지구 택지개발사업 제영향평가용역 | C61: 948 | D61: 2004-11-04 | E61: 2016-12-31 | F61: =SUM(IF((E61-$C$4)>365,365,E61-$C$4))+1 -> 153 | G61: =E61-D61+1 -> 4441 | H61: =ROUNDUP((SUM((C61*(F61/G61)/10))),2) -> 3.27
A62: 2 | B62: 남부권역 국민임대주택단지 제영향평가용역 | C62: 979 | D62: 2005-06-27 | E62: 2016-07-20 | F62: 0 | G62: 4042 | H62: 0
A63: 3 | B63: 동탄2지구 제영향평가용역 | C63: 2704 | D63: 2007-07-24 | E63: 2016-12-31 | F63: =SUM(IF((E63-$C$4)>365,365,E63-$C$4))+1 -> 153 | G63: 3449 | H63: 12
A64: 4 | B64: 서울00지구 개발사업 교통영향분석·개선대책 및 사전재해영향성검토 용역 | C64: 235 | D64: 2015-08-24 | E64: 2017-08-23 | F64: =SUM(IF((E64-$C$4)>365,365,E64-$C$4))+1 -> 366 | G64: 731 | H64: 11.77
A65: 5 | B65: 당진 수청2지구 도시개발사업 제영향평가용역 | C65: 584 | D65: 2015-11-09 | E65: 2017-05-09 | F65: =SUM(IF((E65-$C$4)>365,365,E65-$C$4))+1 -> 282 | G65: 548 | H65: 30.06
A66: 6 | B66: 태인-산내 도로건설공사 교통영향분석.개선대책수립용역 | C66: 132 | D66: 2016-05-02 | E66: 2016-10-28 | F66: =SUM(IF((E66-$C$4)>365,365,E66-$C$4))+1 -> 89 | G66: 180 | H66: 6.53
A67: 7 | B67: 전주탄소섬유 국가산업단지 조성사업 교통영향평가 및 사전재해영향성검토(개발사업) 용역 | C67: 277 | D67: 2016-06-07 | E67: 2017-12-06 | F67: =SUM(IF((E67-$C$4)>365,365,E67-$C$4))+1 -> 366 | G67: 548 | H67: 18.51
B68: 계 | H68: =SUM(H61:H67) -> 82.14
A71: (참여분야 : 수질관리분야 참여평가자, 전 혜 선)
A72: (여유도 산정 기준일) | C72: 2016-08-01
A73: No. | B73: 용역명 | C73: 총사업금액 (백만원) | D73: 착수일 | E73: 준공일 | F73: 잔여 일수 | G73: 총계약 일수 | H73: 중복금액 (백만원)
A74: 1 | B74: 한강 고양지구 하천환경정비사업 소규모환경영향평가용역 | C74: 146 | D74: 2016-03-10 | E74: 2016-09-05 | F74: =SUM(IF((E74-$C$4)>365,365,E74-$C$4))+1 -> 36 | G74: =E74-D74+1 -> 180 | H74: =ROUNDUP((SUM((C74*(F74/G74)/10))),2) -> 2.92
B75: 계 | H75: =SUM(H74:H74) -> 2.92
A78: (참여분야 : 대기관리분야 참여평가자, 안 지 훈)
A79: (여유도 산정 기준일) | C79: 2016-08-01
A80: No. | B80: 용역명 | C80: 총사업금액 (백만원) | D80: 착수일 | E80: 준공일 | F80: 잔여 일수 | G80: 총계약 일수 | H80: 중복금액 (백만원)
A81: 1 | B81: 나주시 소하천정비 종합계획 재수립 전략환경영향평가 용역 | C81: 397 | D81: 2016-01-22 | E81: 2017-01-20 | F81: =SUM(IF((E81-$C$4)>365,365,E81-$C$4))+1 -> 173 | G81: =E81-D81+1 -> 365 | H81: =ROUNDUP((SUM((C81*(F81/G81)/10))),2) -> 18.82
B82: 계 | H82: =SUM(H81:H81) -> 18.82
A85: (참여분야 : 폐기물처리분야 참여평가자, 민 병 주)
A86: (여유도 산정 기준일) | C86: 2016-08-01
A87: No. | B87: 용역명 | C87: 총사업금액 (백만원) | D87: 착수일 | E87: 준공일 | F87: 잔여 일수 | G87: 총계약 일수 | H87: 중복금액 (백만원)
A88: 1 | B88: 나주시 소하천정비 종합계획 재수립 전략환경영향평가 용역 | C88: 397 | D88: 2016-01-22 | E88: 2017-01-20 | F88: =SUM(IF((E88-$C$4)>365,365,E88-$C$4))+1 -> 173 | G88: =E88-D88+1 -> 365 | H88: =ROUNDUP((SUM((C88*(F88/G88)/10))),2) -> 18.82
B89: 계 | H89: =SUM(H88:H88) -> 18.82
A92: (참여분야 : 소음진동분야 참여평가자, 이 민 석)
A93: (여유도 산정 기준일) | C93: 2016-08-01
A94: No. | B94: 용역명 | C94: 총사업금액 (백만원) | D94: 착수일 | E94: 준공일 | F94: 잔여 일수 | G94: 총계약 일수 | H94: 중복금액 (백만원)
A95: 1 | B95: 나주시 소하천정비 종합계획 재수립 전략환경영향평가 용역 | C95: 397 | D95: 2016-01-22 | E95: 2017-01-20 | F95: =SUM(IF((E95-$C$4)>365,365,E95-$C$4))+1 -> 173 | G95: =E95-D95+1 -> 365 | H95: =ROUNDUP((SUM((C95*(F95/G95)/10))),2) -> 18.82
A96: 2 | B96: 성황국제비즈니스파크 제영향평가 용역 | C96: 499 | D96: 2016-02-17 | E96: 2017-02-15 | F96: =SUM(IF((E96-$C$4)>365,365,E96-$C$4))+1 -> 199 | G96: 365 | H96: 27.21
A97: 3 | B97: 남부권역 국민임대주택단지 제영향평가용역 ※협의완료 | C97: 979 | D97: 2005-06-27 | E97: 2016-07-20 | F97: 0 | G97: 4042 | H97: 0
B98: 계 | H98: =SUM(H95:H97) -> 46.03
A101: (참여분야 : 자연환경분야 참여평가자, 조 일 현)
A102: (여유도 산정 기준일) | C102: 2016-08-01
A103: No. | B103: 용역명 | C103: 총사업금액 (백만원) | D103: 착수일 | E103: 준공일 | F103: 잔여 일수 | G103: 총계약 일수 | H103: 중복금액 (백만원)
A104: 1 | B104: 한강 고양지구 하천환경정비사업 소규모환경영향평가용역 | C104: 146 | D104: 2016-03-10 | E104: 2016-09-05 | F104: =SUM(IF((E104-$C$4)>365,365,E104-$C$4))+1 -> 36 | G104: =E104-D104+1 -> 180 | H104: =ROUNDUP((SUM((C104*(F104/G104)/10))),2) -> 2.92
B105: 계 | H105: =SUM(H104:H104) -> 2.92
A108: (참여분야 : 교통분야 참여평가자, 박 완 용)
A109: (여유도 산정 기준일) | C109: 2016-08-01
A110: No. | B110: 용역명 | C110: 총사업금액 (백만원) | D110: 착수일 | E110: 준공일 | F110: 잔여 일수 | G110: 총계약 일수 | H110: 중복금액 (백만원)
A111: 1 | B111: 부여 나주 친수구역 환경.교통분야 영향평가 용역 ※3개월이상 중지중 | C111: 252 | D111: 2014-07-25 | E111: 2016-08-02 | F111: 0 | G111: =E111-D111+1 -> 740 | H111: 0
A112: 2 | B112: 신곡의료복합단지 도시개발사업 제영향(환경·교통)평가용역 ※3개월이상 중지중 | C112: 493 | D112: 2014-12-15 | E112: 2017-06-14 | F112: =SUM(IF((E112-$C$4)>365,365,E112-$C$4))+1 -> 318 | G112: 913 | H112: 0
A113: 3 | B113: 서울00지구 개발사업 교통영향분석·개선대책 및 사전재해영향성검토 용역 | C113: 235 | D113: 2015-08-24 | E113: 2017-08-23 | F113: =SUM(IF((E113-$C$4)>365,365,E113-$C$4))+1 -> 366 | G113: =E113-D113+1 -> 731 | H113: =ROUNDUP((SUM((C113*(F113/G113)/10))),2) -> 11.77
A114: 4 | B114: 성황국제비즈니스파크 제영향평가 용역 | C114: 499 | D114: 2016-02-17 | E114: 2017-02-15 | F114: =SUM(IF((E114-$C$4)>365,365,E114-$C$4))+1 -> 199 | G114: 365 | H114: 27.21
A115: 5 | B115: 태인-산내 도로건설공사 교통영향분석.개선대책수립용역 | C115: 132 | D115: 2016-05-02 | E115: 2016-10-28 | F115: =SUM(IF((E115-$C$4)>365,365,E115-$C$4))+1 -> 89 | G115: 180 | H115: 6.53
A116: 6 | B116: 전주탄소섬유 국가산업단지 조성사업 교통영향평가 및 사전재해영향성검토(개발사업) 용역 | C116: 277 | D116: 2016-06-07 | E116: 2017-12-06 | F116: =SUM(IF((E116-$C$4)>365,365,E116-$C$4))+1 -> 366 | G116: 548 | H116: 18.51
B117: 계 | H117: =SUM(H111:H116) -> 64.02
